fUST/lending_fUST_20251014
["ID","MTS","AMOUNT","RATE_DAILY","PERIOD"]
[391153741,1760399457365,-168.950072,0.00024657,7]
[391153742,1760399457375,-562.82081053,0.00024657,2]
[391153743,1760399457384,-168.950072,0.00024657,7]
[391153744,1760399457394,-168.950072,0.00024657,7]
[391153745,1760399457403,-500.0,0.00024657,2]
[391153746,1760399457412,-168.950072,0.00024657,7]
[391153747,1760399457422,-500.0,0.00024657,2]
[391153748,1760399457431,-501.76155794,0.00024657,2]
[391153749,1760399457441,-168.950072,0.00024657,7]
[391153750,1760399457450,-462.66480881,0.00024657,2]
[391153751,1760399457459,-168.950072,0.00024657,7]
[391153752,1760399457468,-168.950072,0.00024657,7]
[391153753,1760399457478,-500.0,0.00024657,2]
[391153754,1760399457488,-151.0,0.00024657,7]
[391153755,1760399457497,-168.950072,0.00024657,7]
[391153756,1760399457506,-500.0,0.00024657,2]
[391153757,1760399457515,-151.0,0.00024657,7]
[391153758,1760399457524,-168.950068,0.00024657,7]
[391153759,1760399457534,-500.0,0.00024657,2]
[391153760,1760399457543,-500.0,0.00024657,2]
[391153761,1760399457553,-151.0,0.00024657,7]
[391153762,1760399457562,-500.0,0.00024657,2]
[391153763,1760399457572,-594.96536832,0.00024657,2]
[391153764,1760399457581,-500.0,0.00024657,2]
[391153765,1760399457590,-513.80988879,0.00024657,2]
[391153766,1760399457600,-500.0,0.00024657,2]
[391153767,1760399457609,-500.0,0.00024657,2]
[391153768,1760399457618,-500.0,0.00024657,2]
[391153769,1760399457629,-500.0,0.00024657,2]
[391153770,1760399457644,-500.0,0.00024657,2]
[391153771,1760399457655,-507.52147293,0.00024657,2]
[391153772,1760399457665,-500.0,0.00024657,2]
[391153773,1760399457675,-500.0,0.00024657,2]
[391153774,1760399457741,-500.0,0.00024657,2]
[391153775,1760399457752,-513.83766991,0.00024657,2]
[391153776,1760399457761,-151.0,0.00024657,7]
[391153777,1760399457771,-151.0,0.00024657,7]
[391153778,1760399457781,-151.0,0.00024657,7]
[391153779,1760399457791,-151.0,0.00024657,7]
[391153780,1760399457801,-500.0,0.00024657,2]
[391153781,1760399457811,-500.0,0.00024657,2]
[391153782,1760399457821,-500.0,0.00024657,2]
[391153783,1760399457831,-151.0,0.00024657,7]
[391153784,1760399457840,-500.0,0.00024657,2]
[391153785,1760399457849,-151.0,0.00024657,7]
[391153786,1760399457859,-500.0,0.00024657,2]
[391153787,1760399457868,-500.0,0.00024657,2]
[391153788,1760399457877,-151.0,0.00024657,7]
[391153789,1760399457887,-500.0,0.00024657,2]
[391153790,1760399457896,-500.0,0.00024657,2]
[391153791,1760399457905,-504.48159253,0.00024657,2]
[391153792,1760399457915,-500.0,0.00024657,2]
[391153793,1760399457924,-273.8506381,0.00024657,2]
[391153794,1760399457933,-151.0,0.00024657,7]
[391153795,1760399457942,-1074.253771,0.00024657,7]
[391153796,1760399457952,-1074.253771,0.00024657,7]
[391153797,1760399457961,-520.0,0.00024657,3]
[391153798,1760399457970,-500.78931592,0.00024657,2]
[391153799,1760399457979,-1074.253771,0.00024657,7]
[391153800,1760399457989,-1074.253771,0.00024657,7]
[391153801,1760399457998,-500.0,0.00024657,2]
[391153802,1760399458007,-1074.253771,0.00024657,7]
[391153803,1760399458016,-1074.253771,0.00024657,7]
[391153804,1760399458025,-500.0,0.00024657,2]
[391153805,1760399458035,-1074.253771,0.00024657,7]
[391153806,1760399458044,-500.0,0.00024657,2]
[391153807,1760399458053,-500.0,0.00024657,2]
[391153808,1760399458062,-1074.253771,0.00024657,7]
[391153809,1760399458071,-350.70347131,0.00024657,2]
[391153810,1760399458080,-1074.253771,0.00024657,7]
[391153811,1760399458090,-1074.253771,0.00024657,7]
[391153812,1760399458099,-1074.253771,0.00024657,7]
[391153813,1760399458108,-1074.253771,0.00024657,7]
[391153814,1760399458117,-1074.253771,0.00024657,7]
[391153815,1760399458126,-421.49879402,0.00024673,2]
[391153816,1760399458135,-501.34354612,0.00024673,2]
[391153817,1760399458144,-500.85016941,0.00024673,2]
[391153818,1760399458153,-570.57923767,0.00024673,2]
[391153819,1760399458162,-500.0,0.00024673,2]
[391153820,1760399458171,-500.0,0.00024673,2]
[391153821,1760399458180,-500.0,0.00024673,2]
[391153822,1760399458189,-500.0,0.00024673,2]
[391153823,1760399458199,-500.30925585,0.00024673,2]
[391153824,1760399458208,-500.0,0.00024673,2]
[391153825,1760399458220,-500.0,0.00024673,2]
[391153826,1760399458240,-500.0,0.00024673,2]
[391153827,1760399458257,-500.0,0.00024673,2]
[391153828,1760399458274,-500.0,0.00024673,2]
[391153829,1760399458293,-500.0,0.00024673,2]
[391153830,1760399458312,-500.0,0.00024673,2]
[391153831,1760399458329,-500.0,0.00024673,2]
[391153832,1760399458346,-500.0,0.00024673,2]
[391153833,1760399458364,-249.70228567,0.00024673,2]
[391153834,1760399458379,-500.13300599,0.00024673,2]
[391153835,1760399458394,-500.0,0.00024673,2]
[391153836,1760399458411,-500.0,0.00024673,2]
[391153837,1760399458428,-500.0,0.00024673,2]
[391153838,1760399458443,-500.0,0.00024673,2]
[391153839,1760399458456,-500.0,0.00024673,2]
[391153840,1760399458475,-500.0,0.00024673,2]
[391153841,1760399458488,-500.0,0.00024673,2]
[391153842,1760399458502,-500.0,0.00024673,2]
[391153843,1760399458515,-500.0,0.00024673,2]
[391153844,1760399458530,-500.0,0.00024673,2]
[391153845,1760399458544,-500.0,0.00024673,2]
[391153846,1760399458558,-500.0,0.00024673,2]
[391153847,1760399458572,-500.0,0.00024673,2]
[391153848,1760399458586,-500.0,0.00024673,2]
[391153849,1760399458600,-151.0,0.00024673,7]
[391153850,1760399458615,-151.0,0.00024673,7]
[391153851,1760399458629,-151.0,0.00024673,7]
[391153852,1760399458643,-151.0,0.00024673,7]
[391153853,1760399458657,-151.0,0.00024673,7]
[391153854,1760399458667,-151.0,0.00024673,7]
[391153855,1760399458676,-151.0,0.00024673,7]
[391153856,1760399458685,-151.0,0.00024673,7]
[391153857,1760399458694,-800.0,0.00024678,2]
[391153858,1760399458704,-800.0,0.0002468,2]
[391153859,1760399458713,-800.0,0.00024698,2]
[391153860,1760399458722,-800.0,0.00024712,2]
[391153861,1760399458733,-800.0,0.00024712,2]
[391153862,1760399458743,-800.0,0.00024717,2]
[391153863,1760399458751,-800.0,0.0002472,2]
[391153864,1760399458761,-603.5,0.00024723,2]
[391153865,1760399458771,-20006.03981059,0.00024729,2]
[391153866,1760399458780,-251.556913,0.00024729,7]
[391153867,1760399458790,-251.556913,0.00024729,7]
[391153868,1760399458799,-251.556913,0.00024729,7]
[391153869,1760399458808,-251.5569066,0.00024729,7]
[391153870,1760399458817,-800.0,0.00024775,2]
[391153871,1760399458827,-1000.0,0.00024776,2]
[391153872,1760399458836,-1000.0,0.00024776,2]
[391153873,1760399458846,-680.9639,0.00024776,2]
[391153874,1760399458856,-196.5,0.0002479,2]
[391153875,1760399458865,-800.0,0.00024793,2]
[391153876,1760399458877,-800.0,0.00024796,2]
[391153877,1760399459070,-151.0,0.000248,7]
[391153878,1760399459088,-151.0,0.000248,7]
[391153879,1760399459098,-151.0,0.000248,2]
[391153880,1760399459108,-150.0,0.000248,10]
[391153881,1760399459118,-1891.12814066,0.000248,2]
[391153882,1760399459127,-800.0,0.000248,2]
[391153883,1760399459137,-800.0,0.00024801,2]
[391153884,1760399459146,-501.143977,0.00024873,2]
[391153885,1760399459156,-500.0,0.00024873,2]
[391153886,1760399459166,-500.0,0.00024873,2]
[391153887,1760399459175,-610.38801553,0.00024873,2]
[391153888,1760399459184,-2439.11051007,0.00024873,2]
[391153889,1760399459194,-695.26593848,0.00024873,2]
[391153890,1760399459204,-2778.28269018,0.00024873,2]
[391153891,1760399459213,-348.11170137,0.00024875,2]
[391153892,1760399459222,-200.0,0.00024899,2]
[391153893,1760399459231,-300.0,0.000249,2]
[391153894,1760399459240,-300.0,0.000249,2]
[391153895,1760399459249,-300.0,0.000249,2]
[391153896,1760399459258,-300.0,0.000249,2]
[391153897,1760399459266,-300.0,0.000249,2]
[391153898,1760399459276,-300.0,0.000249,2]
[391153899,1760399459285,-300.0,0.000249,2]
[391153900,1760399459296,-300.0,0.000249,2]
[391153901,1760399459304,-300.0,0.000249,2]
[391153902,1760399459313,-300.0,0.000249,2]
[391153903,1760399459322,-1877.5995229,0.000249,2]
[391153904,1760399459331,-151.0,0.000249,7]
[391153905,1760399459341,-151.0,0.000249,7]
[391153906,1760399459350,-153.964798,0.000249,7]
[391153907,1760399459360,-151.0,0.000249,7]
[391153908,1760399459371,-151.0,0.000249,7]
[391153909,1760399459380,-151.0,0.000249,7]
[391153910,1760399459390,-151.0,0.000249,7]
[391153911,1760399459399,-151.0,0.000249,7]
[391153912,1760399459409,-151.0,0.000249,7]
[391153913,1760399459418,-151.0,0.000249,7]
[391153914,1760399459428,-151.0,0.000249,7]
[391153915,1760399459437,-287864.82562302,0.000249,2]
[391153916,1760399459477,-3183.38668629,0.000249,2]
[391153917,1760399459608,-1074.253771,0.00024657,7]
[391153918,1760399459617,-1074.253771,0.00024657,7]
[391153919,1760399459626,-115.092458,0.00024657,7]
[391153920,1760399459637,-959.161313,0.00024657,7]
[391153921,1760399459646,-1074.253771,0.00024657,7]
[391153922,1760399459655,-438.9724211,0.00024657,7]
[391153923,1760399459666,-635.2813499,0.00024657,7]
[391153924,1760399459676,-501.92344452,0.00024657,2]
[391153925,1760399459686,-1074.253771,0.00024657,7]
[391153926,1760399459696,-61.67105208,0.00024657,7]
[391153927,1760399459707,-1012.58272292,0.00024657,7]
[391153928,1760399459716,-3001.10333278,0.000249,2]
[391153929,1760399459749,-374.36,0.00022279,10]
[391153930,1760399459758,-28301.95914912,0.000249,2]
[391153931,1760399459769,-58470.35608863,0.000249,2]
[391153932,1760399459779,-50390.14011298,0.000249,2]
[391153939,1760400064482,460.95174316,0.00020972,2]
[391153952,1760400104487,-330.48702897,0.00020973,2]
[391153953,1760400108676,-169.51297103,0.00020973,2]
[391153954,1760400108700,-36.96783773,0.00020973,2]
[391153955,1760400110756,-304.55523886,0.00020973,2]
[391153956,1760400112225,-156.85554625,0.00020973,2]
[391153957,1760400113882,-1.62137716,0.00020973,2]
[391153958,1760400113904,-232.28040384,0.00020973,2]
[391153959,1760400115744,667.89159387,0.00020972,2]
[391153960,1760400116098,-202.33201336,0.00020973,2]
[391153961,1760400120704,-65.3875828,0.00020973,2]
[391153962,1760400120727,-232.28040184,0.00020973,2]
[391153963,1760400125759,-267.71959816,0.00020973,2]
[391153964,1760400125780,-66.3685551,0.00020973,2]
[391153965,1760400127343,-238.38815326,0.00020973,2]
[391153966,1760400130055,-195.24329164,0.00020973,2]
[391153967,1760400130101,-120.15121252,0.00020973,2]
[391153968,1760400133499,-256.49466964,0.00020973,2]
[391153969,1760400139032,233.901781,0.00020972,2]
[391153971,1760400204726,1000.65,0.00029,120]
[391153972,1760400216756,10000.0,0.00020972,2]
[391153973,1760400314790,372.9,0.0002,10]
[391153974,1760400358156,187.33,0.00020197,2]
[391153985,1760400434333,184.95,0.00020186,2]
[391154027,1760400611975,9500.0,0.00030615,60]
[391154028,1760400613438,9500.0,0.00030615,60]
[391154029,1760400621318,266.975097,0.00013699,2]
[391154030,1760400621549,266.975097,0.00020187,2]
[391154034,1760400631898,-123.35411784,0.00020973,2]
[391154035,1760400631909,-500.0,0.00020973,2]
[391154036,1760400631919,-223.95949254,0.00020973,2]
[391154037,1760400631930,-155.98593192,0.00020973,2]
[391154038,1760400631940,-300.0,0.00020998,2]
[391154039,1760400631950,-1200.0,0.00020998,2]
[391154040,1760400631959,-96.7004577,0.00020999,2]
[391154041,1760400631970,-476.2995423,0.00020999,2]
[391154042,1760400631979,-300.0,0.00021,2]
[391154043,1760400631989,-300.0,0.00021,2]
[391154044,1760400632003,-300.0,0.00021,2]
[391154045,1760400632012,-300.0,0.00021,2]
[391154046,1760400632022,-300.0,0.00021,2]
[391154047,1760400632031,-300.0,0.00021,2]
[391154048,1760400632040,-300.0,0.00021,2]
[391154049,1760400632050,-173.7004577,0.00021,2]
[391154051,1760400632076,-126.2995423,0.00021,2]
[391154052,1760400632085,-300.0,0.00021,2]
[391154053,1760400632094,-300.0,0.00021,2]
[391154054,1760400632103,-2602.63571281,0.00021,2]
[391154055,1760400632112,-300.0,0.00021419,20]
[391154056,1760400632121,-300.0,0.00021419,20]
[391154057,1760400632130,-300.0,0.00021419,20]
[391154058,1760400632139,-300.0,0.00021419,20]
[391154059,1760400632149,-300.0,0.00021419,20]
[391154060,1760400632158,-271.06474489,0.00021419,20]
[391154061,1760400632169,-28.93525511,0.00021419,20]
[391154062,1760400632178,-300.0,0.00021419,20]
[391154063,1760400632188,-300.0,0.00021419,20]
[391154064,1760400632197,-300.0,0.00021419,20]
[391154065,1760400632206,-138.93132129,0.00021419,20]
[391154144,1760400638065,-161.06867871,0.00021419,20]
[391154145,1760400638075,-300.0,0.00021419,20]
[391154146,1760400638084,-300.0,0.00021419,20]
[391154147,1760400638094,-300.0,0.00021419,20]
[391154148,1760400638103,-300.0,0.00021419,20]
[391154149,1760400638112,-300.0,0.00021419,20]
[391154150,1760400638121,-179.38382171,0.00021573,2]
[391154151,1760400638130,-2409.24749958,0.00021817,2]
[391154152,1760400638141,-314.10606967,0.00021817,2]
[391154153,1760400638152,-4884.64874322,0.00021817,2]
[391154154,1760400638161,-253.60965255,0.00021897,2]
[391154155,1760400638170,-253.60965255,0.00021897,2]
[391154156,1760400638179,-253.60965255,0.00021898,2]
[391154157,1760400638188,-253.60965255,0.00021898,2]
[391154158,1760400638198,-253.60965255,0.00021898,2]
[391154159,1760400638207,-522.48,0.00021907,10]
[391154160,1760400638216,-370.52562359,0.00021916,2]
[391154161,1760400638225,-500.0,0.00021916,2]
[391154162,1760400638234,-500.0,0.00021916,2]
[391154163,1760400638244,-230.33522002,0.00021916,2]
[391154164,1760400638253,-365.90208192,0.00021917,2]
[391154165,1760400638262,-500.0,0.00021917,2]
[391154166,1760400638271,-500.0,0.00021917,2]
[391154167,1760400638280,-500.0,0.00021917,2]
[391154168,1760400638289,-500.0,0.00021917,2]
[391154169,1760400638298,-500.0,0.00021917,2]
[391154170,1760400638307,-500.0,0.00021917,2]
[391154171,1760400638316,-500.0,0.00021917,2]
[391154172,1760400638325,-418.5,0.00021917,2]
[391154173,1760400638334,-500.0,0.00021917,2]
[391154174,1760400638344,-500.0,0.00021917,2]
[391154175,1760400638353,-500.0,0.00021917,2]
[391154176,1760400638363,-500.0,0.00021917,2]
[391154177,1760400638372,-500.0,0.00021917,2]
[391154178,1760400638381,-500.0,0.00021917,2]
[391154179,1760400638391,-500.0,0.00021917,2]
[391154180,1760400638400,-500.0,0.00021917,2]
[391154181,1760400638409,-500.0,0.00021917,2]
[391154182,1760400638419,-500.0,0.00021917,2]
[391154183,1760400638428,-500.0,0.00021917,2]
[391154184,1760400638437,-500.0,0.00021917,2]
[391154185,1760400638446,-500.0,0.00021917,2]
[391154186,1760400638455,-500.0,0.00021917,2]
[391154187,1760400638465,-500.0,0.00021917,2]
[391154188,1760400638474,-500.0,0.00021917,2]
[391154189,1760400638484,-500.0,0.00021917,2]
[391154190,1760400638493,-503.99967888,0.00021917,2]
[391154191,1760400638502,-1003.87,0.00021917,2]
[391154192,1760400638512,-1003.87,0.00021917,2]
[391154193,1760400638521,-1003.87,0.00021917,2]
[391154194,1760400638531,-1003.87,0.00021917,2]
[391154195,1760400638540,-1003.87,0.00021917,2]
[391154196,1760400638549,-1003.87,0.00021917,2]
[391154197,1760400638558,-1003.87,0.00021917,2]
[391154198,1760400638566,-1003.87,0.00021917,2]
[391154199,1760400638575,-1003.87,0.00021917,2]
[391154200,1760400638585,-1003.87,0.00021917,2]
[391154201,1760400638595,-1003.87,0.00021917,2]
[391154202,1760400638605,-1003.87,0.00021917,2]
[391154203,1760400638615,-1003.87,0.00021917,2]
[391154204,1760400638628,-1003.87,0.00021917,2]
[391154205,1760400638638,-1003.87,0.00021917,2]
[391154206,1760400638646,-1003.87,0.00021917,2]
[391154207,1760400638655,-1003.87,0.00021917,2]
[391154208,1760400638664,-1003.87,0.00021917,2]
[391154209,1760400638674,-1003.87,0.00021917,2]
[391154210,1760400638683,-1003.87,0.00021917,2]
[391154211,1760400638692,-1003.87,0.00021917,2]
[391154212,1760400638702,-1003.87,0.00021917,2]
[391154213,1760400638710,-1003.87,0.00021917,2]
[391154214,1760400638719,-1004.03,0.00021917,2]
[391154215,1760400638729,-500.0,0.00021917,2]
[391154216,1760400638737,-500.0,0.00021917,2]
[391154217,1760400638747,-500.0,0.00021917,2]
[391154218,1760400638756,-502.57315341,0.00021917,2]
[391154219,1760400638765,-500.0,0.00021917,2]
[391154220,1760400638775,-500.0,0.00021917,2]
[391154221,1760400638784,-500.0,0.00021917,2]
[391154222,1760400638796,-500.0,0.00021917,2]
[391154223,1760400638806,-500.0,0.00021917,2]
[391154224,1760400638816,-513.52,0.00021917,2]
[391154225,1760400638826,-500.0,0.00021917,2]
[391154226,1760400638838,-502.22603363,0.00021917,2]
[391154227,1760400638848,-500.0,0.00021917,2]
[391154228,1760400638858,-500.0,0.00021917,2]
[391154229,1760400638870,-500.0,0.00021917,2]
[391154230,1760400638879,-502.47949734,0.00021917,2]
[391154231,1760400638888,-2592.48,0.00021917,2]
[391154232,1760400638898,-2592.48,0.00021917,2]
[391154233,1760400638908,-2592.48,0.00021917,2]
[391154234,1760400638918,-2592.48,0.00021917,2]
[391154235,1760400638927,-500.0,0.00021917,2]
[391154236,1760400638937,-2592.48,0.00021917,2]
[391154237,1760400638946,-500.0,0.00021917,2]
[391154238,1760400638956,-2592.48,0.00021917,2]
[391154239,1760400638966,-500.0,0.00021917,2]
[391154240,1760400638977,-2592.48,0.00021917,2]
[391154241,1760400638987,-500.0,0.00021917,2]
[391154242,1760400638997,-596.6,0.00021917,2]
[391154243,1760400639007,-2592.48,0.00021917,2]
[391154244,1760400639017,-2592.48,0.00021917,2]
[391154245,1760400639029,-2592.48,0.00021917,2]
[391154246,1760400639041,-2592.48,0.00021917,2]
[391154247,1760400639051,-2592.48,0.00021917,2]
[391154248,1760400639061,-2592.48,0.00021917,2]
[391154249,1760400639071,-6332.37,0.00021917,2]
[391154250,1760400639080,-6332.37,0.00021917,2]
[391154251,1760400639091,-2592.48,0.00021917,2]
[391154252,1760400639100,-6332.37,0.00021917,2]
[391154253,1760400639111,-2592.48,0.00021917,2]
[391154254,1760400639121,-6332.37,0.00021917,2]
[391154255,1760400639131,-2592.48,0.00021917,2]
[391154256,1760400639140,-2592.48,0.00021917,2]
[391154257,1760400639149,-6332.37,0.00021917,2]
[391154258,1760400639159,-2592.48,0.00021917,2]
[391154259,1760400639168,-6332.37,0.00021917,2]
[391154260,1760400639178,-2592.48,0.00021917,2]
[391154261,1760400639188,-6332.37,0.00021917,2]
[391154262,1760400639197,-2592.48,0.00021917,2]
[391154263,1760400639207,-6332.37,0.00021917,2]
[391154264,1760400639217,-2592.48,0.00021917,2]
[391154265,1760400639226,-6332.37,0.00021917,2]
[391154266,1760400639236,-2592.48,0.00021917,2]
[391154267,1760400639246,-6332.37,0.00021917,2]
[391154268,1760400639256,-2592.48,0.00021917,2]
[391154269,1760400639265,-6332.37,0.00021917,2]
[391154270,1760400639276,-2592.54,0.00021917,2]
[391154271,1760400639285,-6332.37,0.00021917,2]
[391154272,1760400639295,-6332.37,0.00021917,2]
[391154273,1760400639305,-6332.37,0.00021917,2]
[391154274,1760400639315,-6332.37,0.00021917,2]
[391154275,1760400639325,-6332.37,0.00021917,2]
[391154276,1760400639334,-6332.37,0.00021917,2]
[391154277,1760400639343,-6332.37,0.00021917,2]
[391154278,1760400639352,-747.31,0.00021917,2]
[391154279,1760400639362,-747.31,0.00021917,2]
[391154280,1760400639371,-6332.37,0.00021917,2]
[391154281,1760400639380,-747.31,0.00021917,2]
[391154282,1760400639389,-6332.37,0.00021917,2]
[391154283,1760400639398,-747.31,0.00021917,2]
[391154284,1760400639408,-6332.37,0.00021917,2]
[391154285,1760400639417,-747.31,0.00021917,2]
[391154286,1760400639426,-6332.37,0.00021917,2]
[391154287,1760400639435,-747.31,0.00021917,2]
[391154288,1760400639445,-6332.37,0.00021917,2]
[391154289,1760400639454,-747.31,0.00021917,2]
[391154290,1760400639463,-6332.57035284,0.00021917,2]
[391154291,1760400639472,-747.31,0.00021917,2]
[391154292,1760400639482,-747.31,0.00021917,2]
[391154293,1760400639491,-747.31,0.00021917,2]
[391154294,1760400639500,-747.31,0.00021917,2]
[391154295,1760400639508,-747.31,0.00021917,2]
[391154296,1760400639517,-747.31,0.00021917,2]
[391154297,1760400639526,-747.31,0.00021917,2]
[391154298,1760400639535,-747.31,0.00021917,2]
[391154299,1760400639544,-500.0,0.00021917,2]
[391154300,1760400639553,-747.31,0.00021917,2]
[391154301,1760400639562,-500.0,0.00021917,2]
[391154302,1760400639571,-747.31,0.00021917,2]
[391154303,1760400639580,-500.0,0.00021917,2]
[391154307,1760400639589,-747.31,0.00021917,2]
[391154309,1760400639600,-500.0,0.00021917,2]
[391154311,1760400639610,-747.31,0.00021917,2]
[391154312,1760400639619,-500.0,0.00021917,2]
[391154313,1760400639629,-747.31,0.00021917,2]
[391154314,1760400639638,-562.95,0.00021917,2]
[391154315,1760400639648,-747.31,0.00021917,2]
[391154316,1760400639657,-747.31,0.00021917,2]
[391154317,1760400639666,-747.31,0.00021917,2]
[391154318,1760400639675,-747.49,0.00021917,2]
[391154319,1760400639684,-500.0,0.00021917,2]
[391154320,1760400639693,-500.0,0.00021917,2]
[391154322,1760400639702,-500.0,0.00021917,2]
[391154323,1760400639711,-500.0,0.00021917,2]
[391154324,1760400639720,-500.0,0.00021917,2]
[391154325,1760400639729,-500.0,0.00021917,2]
[391154326,1760400639738,-500.0,0.00021917,2]
[391154327,1760400639747,-500.0,0.00021917,2]
[391154328,1760400639755,-500.0,0.00021917,2]
[391154329,1760400639765,-500.0,0.00021917,2]
[391154330,1760400639774,-439.10703759,0.00021917,2]
[391154331,1760400639783,-500.0,0.00021917,2]
[391154332,1760400639795,-500.0,0.00021917,2]
[391154333,1760400639804,-500.0,0.00021917,2]
[391154334,1760400639814,-500.0,0.00021917,2]
[391154335,1760400639823,-500.0,0.00021917,2]
[391154336,1760400639833,-500.0,0.00021917,2]
[391154337,1760400639842,-500.0,0.00021917,2]
[391154338,1760400639852,-500.0,0.00021917,2]
[391154339,1760400639861,-165.25,0.00021917,2]
[391154340,1760400639872,-500.0,0.00021917,2]
[391154341,1760400639881,-500.0,0.00021917,2]
[391154342,1760400639891,-500.0,0.00021917,2]
[391154343,1760400639900,-500.0,0.00021917,2]
[391154344,1760400639910,-500.0,0.00021917,2]
[391154345,1760400639919,-2297.48,0.00021917,2]
[391154346,1760400639929,-500.0,0.00021917,2]
[391154348,1760400639939,-2297.48,0.00021917,2]
[391154350,1760400639948,-2297.48,0.00021917,2]
[391154351,1760400639958,-500.0,0.00021917,2]
[391154352,1760400639967,-2297.48,0.00021917,2]
[391154353,1760400639976,-500.0,0.00021917,2]
[391154354,1760400639985,-2297.48,0.00021917,2]
[391154355,1760400639994,-2297.48,0.00021917,2]
[391154356,1760400640003,-500.0,0.00021917,2]
[391154357,1760400640012,-2297.48,0.00021917,2]
[391154358,1760400640021,-500.0,0.00021917,2]
[391154359,1760400640031,-500.0,0.00021917,2]
[391154360,1760400640040,-2297.48,0.00021917,2]
[391154361,1760400640049,-500.0,0.00021917,2]
[391154362,1760400640058,-2297.48,0.00021917,2]
[391154363,1760400640067,-500.0,0.00021917,2]
[391154364,1760400640076,-2297.48,0.00021917,2]
[391154365,1760400640085,-500.0,0.00021917,2]
[391154366,1760400640095,-2297.48,0.00021917,2]
[391154367,1760400640106,-500.0,0.00021917,2]
[391154368,1760400640125,-2297.48,0.00021917,2]
[391154369,1760400640138,-500.0,0.00021917,2]
[391154370,1760400640149,-2297.48,0.00021917,2]
[391154371,1760400640159,-500.0,0.00021917,2]
[391154372,1760400640170,-2297.48,0.00021917,2]
[391154373,1760400640182,-500.0,0.00021917,2]
[391154374,1760400640191,-2297.48,0.00021917,2]
[391154375,1760400640200,-408.49,0.00021917,2]
[391154376,1760400640210,-2297.48,0.00021917,2]
[391154377,1760400640220,-2297.48,0.00021917,2]
[391154378,1760400640229,-2297.48,0.00021917,2]
[391154379,1760400640238,-2297.48,0.00021917,2]
[391154380,1760400640248,-2297.48,0.00021917,2]
[391154381,1760400640258,-2297.48,0.00021917,2]
[391154382,1760400640268,-2297.48,0.00021917,2]
[391154383,1760400640277,-500.0,0.00021917,2]
[391154384,1760400640287,-500.0,0.00021917,2]
[391154385,1760400640295,-500.0,0.00021917,2]
[391154386,1760400640305,-500.0,0.00021917,2]
[391154387,1760400640314,-500.0,0.00021917,2]
[391154388,1760400640323,-500.0,0.00021917,2]
[391154389,1760400640332,-500.0,0.00021917,2]
[391154390,1760400640341,-500.0,0.00021917,2]
[391154391,1760400640351,-500.0,0.00021917,2]
[391154392,1760400640360,-500.0,0.00021917,2]
[391154393,1760400640369,-500.0,0.00021917,2]
[391154394,1760400640378,-500.0,0.00021917,2]
[391154395,1760400640386,-500.0,0.00021917,2]
[391154396,1760400640395,-412.57983535,0.00021917,2]
[391154397,1760400640405,-2297.48,0.00021917,2]
[391154398,1760400640414,-2297.48,0.00021917,2]
[391154399,1760400640423,-500.0,0.00021917,2]
[391154400,1760400640431,-500.0,0.00021917,2]